[Event "Titled Tuesday Blitz May 16 Early 2023"]
[White "JeRoma71"]
[Black "Han, Yichen"]
[BlackFideId "1054430"]
[WhiteElo "2846"]
[BlackElo "2342"]
[Result "1-0"]
[Round "02"]
[TimeControl "180+2"]
[Date "2023.05.16"]
[WhiteClock "0:01:14"]
[BlackClock "0:00:00"]

1. Nf3 {[%clk 0:02:59]}  d5 {[%clk 0:02:55]} 2. g3 {[%clk 0:03:00]}  Bg4 {[%clk 0:02:55]} 3. Ne5 {[%clk 0:03:00]}  Bh5 {[%clk 0:02:52]} 4. d4 {[%clk 0:03:00]}  Nd7 {[%clk 0:02:49]} 5. Bg2 {[%clk 0:03:01]}  e6 {[%clk 0:02:46]} 6. O-O {[%clk 0:03:00]}  Ngf6 {[%clk 0:02:44]} 7. c4 {[%clk 0:03:00]}  c6 {[%clk 0:02:43]} 8. Nc3 {[%clk 0:03:00]}  Nxe5 {[%clk 0:02:41]} 9. dxe5 {[%clk 0:03:01]}  Nd7 {[%clk 0:02:41]} 10. cxd5 {[%clk 0:03:02]}  cxd5 {[%clk 0:02:38]} 11. Nb5 {[%clk 0:03:02]}  Bc5 {[%clk 0:02:22]} 12. Bf4 {[%clk 0:02:57]}  O-O {[%clk 0:02:19]} 13. Rc1 {[%clk 0:02:57]}  a6 {[%clk 0:02:18]} 14. Nd6 {[%clk 0:02:57]}  Bxd6 {[%clk 0:02:09]} 15. exd6 {[%clk 0:02:58]}  Rc8 {[%clk 0:02:04]} 16. Rc7 {[%clk 0:02:47]}  e5 {[%clk 0:01:38]} 17. Qxd5 {[%clk 0:02:47]}  Rxc7 {[%clk 0:01:20]} 18. dxc7 {[%clk 0:02:46]}  Qxc7 {[%clk 0:01:21]} 19. Rc1 {[%clk 0:02:45]}  Qb8 {[%clk 0:01:07]} 20. Bg5 {[%clk 0:02:37]}  Nf6 {[%clk 0:00:50]} 21. Bxf6 {[%clk 0:02:37]}  gxf6 {[%clk 0:00:51]} 22. e3 {[%clk 0:02:29]}  Rc8 {[%clk 0:00:46]} 23. Rc4 {[%clk 0:02:09]}  Rxc4 {[%clk 0:00:42]} 24. Qxc4 {[%clk 0:02:10]}  b5 {[%clk 0:00:32]} 25. Qh4 {[%clk 0:02:06]}  Bg6 {[%clk 0:00:24]} 26. Qxf6 {[%clk 0:02:06]}  Qc7 {[%clk 0:00:23]} 27. h4 {[%clk 0:02:02]}  Qc1+ {[%clk 0:00:21]} 28. Kh2 {[%clk 0:02:03]}  Qxb2 {[%clk 0:00:22]} 29. Bd5 {[%clk 0:01:58]}  Qe2 {[%clk 0:00:17]} 30. e4 {[%clk 0:01:56]}  b4 {[%clk 0:00:13]} 31. Kg1 {[%clk 0:01:37]}  Qe1+ {[%clk 0:00:12]} 32. Kh2 {[%clk 0:01:37]}  Qe2 {[%clk 0:00:13]} 33. Qb6 {[%clk 0:01:30]}  a5 {[%clk 0:00:11]} 34. Qb8+ {[%clk 0:01:30]}  Kg7 {[%clk 0:00:11]} 35. Qxe5+ {[%clk 0:01:31]}  Kg8 {[%clk 0:00:12]} 36. Qf4 {[%clk 0:01:19]}  a4 {[%clk 0:00:12]} 37. g4 {[%clk 0:01:20]}  b3 {[%clk 0:00:11]} 38. axb3 {[%clk 0:01:20]}  axb3 {[%clk 0:00:12]} 39. h5 {[%clk 0:01:13]}  Bxh5 {[%clk 0:00:06]} 40. gxh5 {[%clk 0:01:14]}  Qxh5+ {[%clk 0:00:07]} 41. Kg3 {[%clk 0:01:14]}  Qg6+ {[%clk 0:00:04]} 42. Qg4 {[%clk 0:01:14]}  b2 {[%clk 0:00:03]} 43. Qxg6+ {[%clk 0:01:14]}  hxg6 {[%clk 0:00:01]} 44. Ba2 {[%clk 0:01:15]}  Kg7 {[%clk 0:00:02]} 45. Kf4 {[%clk 0:01:12]}  Kf6 {[%clk 0:00:02]} 46. e5+ {[%clk 0:01:12]}  Ke7 {[%clk 0:00:02]} 47. Kg5 {[%clk 0:01:13]}  Ke8 {[%clk 0:00:02]} 48. Kf6 {[%clk 0:01:14]}  Kf8 {[%clk 0:00:02]} 49. f4 {[%clk 0:01:13]}  Ke8 {[%clk 0:00:02]} 50. Bxf7+ {[%clk 0:01:13]}  Kf8 {[%clk 0:00:00]} 51. Bxg6 {[%clk 0:01:14]} 1-0


[Site "https://www.chess.com"]

[Event "Titled Tuesday Blitz May 16 Early 2023"]
[White "Sychev, Klementy"]
[Black "Manukyan, Sargis V."]
[WhiteFideId "4114060"]
[BlackFideId "13303465"]
[WhiteElo "2583"]
[BlackElo "2236"]
[Result "1-0"]
[Round "02"]
[TimeControl "180+2"]
[Date "2023.05.16"]
[WhiteClock "0:01:03"]
[BlackClock "0:00:02"]

1. e4 {[%clk 0:03:00]}  c5 {[%clk 0:02:34]} 2. Nf3 {[%clk 0:03:01]}  Nc6 {[%clk 0:02:28]} 3. d4 {[%clk 0:03:01]}  cxd4 {[%clk 0:02:29]} 4. Nxd4 {[%clk 0:03:01]}  g6 {[%clk 0:02:28]} 5. Nc3 {[%clk 0:03:02]}  Bg7 {[%clk 0:02:28]} 6. Be3 {[%clk 0:03:02]}  Nf6 {[%clk 0:02:28]} 7. Nxc6 {[%clk 0:03:02]}  bxc6 {[%clk 0:02:27]} 8. e5 {[%clk 0:03:02]}  Ng8 {[%clk 0:02:26]} 9. Bd4 {[%clk 0:03:03]}  Qa5 {[%clk 0:02:13]} 10. Bc4 {[%clk 0:03:03]}  Bxe5 {[%clk 0:02:02]} 11. O-O {[%clk 0:03:02]}  Nf6 {[%clk 0:01:41]} 12. Re1 {[%clk 0:03:02]}  Bxd4 {[%clk 0:01:40]} 13. Qxd4 {[%clk 0:03:03]}  O-O {[%clk 0:01:15]} 14. Rxe7 {[%clk 0:03:02]}  Nh5 {[%clk 0:00:51]} 15. Rae1 {[%clk 0:01:23]}  d5 {[%clk 0:00:49]} 16. Nxd5 {[%clk 0:01:22]}  cxd5 {[%clk 0:00:46]} 17. Bxd5 {[%clk 0:01:23]}  Ba6 {[%clk 0:00:16]} 18. Bxa8 {[%clk 0:01:18]}  Ng7 {[%clk 0:00:12]} 19. Bd5 {[%clk 0:01:02]}  Nf5 {[%clk 0:00:07]} 20. Bxf7+ {[%clk 0:01:01]}  Rxf7 {[%clk 0:00:06]} 21. Re8+ {[%clk 0:01:02]}  Rf8 {[%clk 0:00:07]} 22. Rxf8+ {[%clk 0:01:03]}  Kxf8 {[%clk 0:00:02]} 23. Qf6+ {[%clk 0:01:03]} 1-0


[Site "https://www.chess.com"]

[Event "Titled Tuesday Blitz May 16 Early 2023"]
[White "Domingo Nunez, Alejandro"]
[Black "Suyarov, Mukhammadzokhid"]
[WhiteFideId "22245561"]
[BlackFideId "14210495"]
[WhiteElo "2291"]
[BlackElo "2361"]
[Result "1-0"]
[Round "02"]
[TimeControl "180+2"]
[Date "2023.05.16"]
[WhiteClock "0:00:07"]
[BlackClock "0:00:18"]

1. Nf3 {[%clk 0:03:00]}  d5 {[%clk 0:02:59]} 2. g3 {[%clk 0:02:58]}  Nf6 {[%clk 0:02:59]} 3. Bg2 {[%clk 0:02:57]}  Bg4 {[%clk 0:03:00]} 4. O-O {[%clk 0:02:57]}  e6 {[%clk 0:02:59]} 5. h3 {[%clk 0:02:57]}  Bh5 {[%clk 0:02:59]} 6. d3 {[%clk 0:02:49]}  Be7 {[%clk 0:02:57]} 7. Qe1 {[%clk 0:02:50]}  O-O {[%clk 0:02:56]} 8. e4 {[%clk 0:02:50]}  c5 {[%clk 0:02:55]} 9. Ne5 {[%clk 0:02:42]}  Nc6 {[%clk 0:02:53]} 10. Nxc6 {[%clk 0:02:41]}  bxc6 {[%clk 0:02:54]} 11. b3 {[%clk 0:02:41]}  Nd7 {[%clk 0:02:49]} 12. Bb2 {[%clk 0:02:40]}  Rb8 {[%clk 0:02:36]} 13. Nd2 {[%clk 0:02:40]}  Qa5 {[%clk 0:02:32]} 14. g4 {[%clk 0:02:00]}  Bg6 {[%clk 0:02:31]} 15. f4 {[%clk 0:02:00]}  h6 {[%clk 0:02:12]} 16. a3 {[%clk 0:01:25]}  Rfe8 {[%clk 0:02:06]} 17. f5 {[%clk 0:01:13]}  Bh7 {[%clk 0:02:02]} 18. e5 {[%clk 0:01:00]}  exf5 {[%clk 0:01:53]} 19. gxf5 {[%clk 0:00:59]}  Bg5 {[%clk 0:01:54]} 20. Rd1 {[%clk 0:00:44]}  Re7 {[%clk 0:01:38]} 21. Nf3 {[%clk 0:00:14]}  Qxe1 {[%clk 0:01:35]} 22. Rdxe1 {[%clk 0:00:15]}  Rbe8 {[%clk 0:01:33]} 23. b4 {[%clk 0:00:09]}  cxb4 {[%clk 0:01:05]} 24. axb4 {[%clk 0:00:10]}  Bf4 {[%clk 0:01:06]} 25. Nd4 {[%clk 0:00:07]}  Bd2 {[%clk 0:01:02]} 26. Re2 {[%clk 0:00:06]}  Bxb4 {[%clk 0:00:49]} 27. Nxc6 {[%clk 0:00:06]}  Bc5+ {[%clk 0:00:45]} 28. Kh1 {[%clk 0:00:06]}  Nb6 {[%clk 0:00:41]} 29. Nxe7+ {[%clk 0:00:06]}  Bxe7 {[%clk 0:00:41]} 30. f6 {[%clk 0:00:03]}  Bxf6 {[%clk 0:00:42]} 31. Ref2 {[%clk 0:00:02]}  Be7 {[%clk 0:00:32]} 32. Rxf7 {[%clk 0:00:02]}  Bg6 {[%clk 0:00:33]} 33. e6 {[%clk 0:00:02]}  Bf6 {[%clk 0:00:29]} 34. Bxf6 {[%clk 0:00:02]}  Bxf7 {[%clk 0:00:27]} 35. exf7+ {[%clk 0:00:03]}  Kxf7 {[%clk 0:00:28]} 36. Bd4+ {[%clk 0:00:04]}  Kg6 {[%clk 0:00:27]} 37. Bxb6 {[%clk 0:00:04]}  axb6 {[%clk 0:00:28]} 38. Bxd5 {[%clk 0:00:05]}  Re2 {[%clk 0:00:28]} 39. Be4+ {[%clk 0:00:06]}  Kg5 {[%clk 0:00:28]} 40. Rg1+ {[%clk 0:00:05]}  Kh4 {[%clk 0:00:28]} 41. Rg2 {[%clk 0:00:06]}  Re3 {[%clk 0:00:27]} 42. Kh2 {[%clk 0:00:07]}  Rxh3+ {[%clk 0:00:26]} 43. Kg1 {[%clk 0:00:08]}  Re3 {[%clk 0:00:26]} 44. Kf2 {[%clk 0:00:08]}  Rh3 {[%clk 0:00:25]} 45. Rxg7 {[%clk 0:00:08]}  b5 {[%clk 0:00:25]} 46. Bf3 {[%clk 0:00:06]}  Rh2+ {[%clk 0:00:21]} 47. Rg2 {[%clk 0:00:06]}  Rxg2+ {[%clk 0:00:15]} 48. Kxg2 {[%clk 0:00:06]}  Kg5 {[%clk 0:00:16]} 49. Kg3 {[%clk 0:00:06]}  b4 {[%clk 0:00:15]} 50. d4 {[%clk 0:00:06]}  h5 {[%clk 0:00:15]} 51. d5 {[%clk 0:00:06]}  h4+ {[%clk 0:00:15]} 52. Kh3 {[%clk 0:00:06]}  Kf4 {[%clk 0:00:15]} 53. d6 {[%clk 0:00:06]}  Ke3 {[%clk 0:00:15]} 54. d7 {[%clk 0:00:07]}  b3 {[%clk 0:00:15]} 55. cxb3 {[%clk 0:00:06]}  Kf4 {[%clk 0:00:15]} 56. d8=Q {[%clk 0:00:07]}  Ke3 {[%clk 0:00:16]} 57. Qd5 {[%clk 0:00:07]}  Kf2 {[%clk 0:00:17]} 58. Qd3 {[%clk 0:00:07]}  Ke1 {[%clk 0:00:18]} 59. Qe2# {[%clk 0:00:07]} 1-0


[Site "https://www.chess.com"]

[Event "Titled Tuesday Blitz May 16 Early 2023"]
[White "Lobanov, Sergei"]
[Black "Tasev, Dejan"]
[WhiteFideId "24183750"]
[BlackFideId "936618"]
[WhiteElo "2501"]
[BlackElo "2244"]
[Result "1-0"]
[Round "02"]
[TimeControl "180+2"]
[Date "2023.05.16"]
[WhiteClock "0:00:15"]
[BlackClock "0:00:08"]

1. d4 {[%clk 0:03:00]}  Nf6 {[%clk 0:02:58]} 2. c4 {[%clk 0:03:01]}  c5 {[%clk 0:02:58]} 3. d5 {[%clk 0:03:01]}  e6 {[%clk 0:02:58]} 4. Nc3 {[%clk 0:03:01]}  exd5 {[%clk 0:02:59]} 5. cxd5 {[%clk 0:03:02]}  d6 {[%clk 0:02:59]} 6. e4 {[%clk 0:03:02]}  g6 {[%clk 0:02:59]} 7. Nf3 {[%clk 0:03:02]}  Bg7 {[%clk 0:02:59]} 8. Nd2 {[%clk 0:03:00]}  O-O {[%clk 0:02:59]} 9. Be2 {[%clk 0:03:00]}  a5 {[%clk 0:02:59]} 10. O-O {[%clk 0:02:57]}  Nfd7 {[%clk 0:02:59]} 11. Nb5 {[%clk 0:02:50]}  Nf6 {[%clk 0:02:54]} 12. Qc2 {[%clk 0:02:37]}  Na6 {[%clk 0:02:48]} 13. Nc4 {[%clk 0:02:27]}  Ne8 {[%clk 0:02:45]} 14. Bf4 {[%clk 0:02:22]}  Nb4 {[%clk 0:02:41]} 15. Qd2 {[%clk 0:02:22]}  f5 {[%clk 0:02:35]} 16. Ncxd6 {[%clk 0:02:08]}  fxe4 {[%clk 0:02:26]} 17. Nxe4 {[%clk 0:02:09]}  Bf5 {[%clk 0:02:08]} 18. Nxc5 {[%clk 0:02:05]}  Qb6 {[%clk 0:01:52]} 19. Na4 {[%clk 0:01:34]}  Qf6 {[%clk 0:01:41]} 20. Bg5 {[%clk 0:01:31]}  Qe5 {[%clk 0:01:35]} 21. Nac3 {[%clk 0:01:31]}  Nf6 {[%clk 0:01:21]} 22. Rad1 {[%clk 0:01:17]}  Ne4 {[%clk 0:01:16]} 23. Nxe4 {[%clk 0:01:16]}  Bxe4 {[%clk 0:01:14]} 24. d6 {[%clk 0:01:11]}  Bc6 {[%clk 0:01:00]} 25. d7 {[%clk 0:00:44]}  Bf6 {[%clk 0:00:48]} 26. Bxf6 {[%clk 0:00:38]}  Qxf6 {[%clk 0:00:47]} 27. a3 {[%clk 0:00:33]}  Na6 {[%clk 0:00:31]} 28. Bc4+ {[%clk 0:00:29]}  Kg7 {[%clk 0:00:31]} 29. Qxa5 {[%clk 0:00:19]}  Nc5 {[%clk 0:00:22]} 30. Qc3 {[%clk 0:00:19]}  Qxc3 {[%clk 0:00:21]} 31. Nxc3 {[%clk 0:00:19]}  Nxd7 {[%clk 0:00:19]} 32. Rfe1 {[%clk 0:00:20]}  Nb6 {[%clk 0:00:18]} 33. Bb3 {[%clk 0:00:19]}  Rae8 {[%clk 0:00:18]} 34. f3 {[%clk 0:00:19]}  Rxe1+ {[%clk 0:00:17]} 35. Rxe1 {[%clk 0:00:20]}  Rd8 {[%clk 0:00:17]} 36. Rd1 {[%clk 0:00:20]}  Re8 {[%clk 0:00:17]} 37. Kf2 {[%clk 0:00:20]}  Nd7 {[%clk 0:00:18]} 38. Re1 {[%clk 0:00:20]}  Rd8 {[%clk 0:00:16]} 39. Re7+ {[%clk 0:00:20]}  Kh6 {[%clk 0:00:15]} 40. h4 {[%clk 0:00:18]}  Nc5 {[%clk 0:00:14]} 41. g4 {[%clk 0:00:17]}  g5 {[%clk 0:00:11]} 42. hxg5+ {[%clk 0:00:17]}  Kxg5 {[%clk 0:00:10]} 43. Re5+ {[%clk 0:00:17]}  Kg6 {[%clk 0:00:09]} 44. Rxc5 {[%clk 0:00:16]}  Rd2+ {[%clk 0:00:09]} 45. Kg3 {[%clk 0:00:17]}  Rxb2 {[%clk 0:00:09]} 46. Bc4 {[%clk 0:00:15]}  h6 {[%clk 0:00:08]} 47. Bd5 {[%clk 0:00:14]}  Bd7 {[%clk 0:00:07]} 48. Be4+ {[%clk 0:00:14]}  Kf6 {[%clk 0:00:07]} 49. Nd5+ {[%clk 0:00:14]}  Kf7 {[%clk 0:00:06]} 50. Rc7 {[%clk 0:00:14]}  Ke8 {[%clk 0:00:06]} 51. Nf6+ {[%clk 0:00:14]}  Ke7 {[%clk 0:00:06]} 52. Nxd7 {[%clk 0:00:14]}  Ke6 {[%clk 0:00:07]} 53. Nc5+ {[%clk 0:00:14]}  Ke5 {[%clk 0:00:08]} 54. Rxb7 {[%clk 0:00:13]}  Ra2 {[%clk 0:00:08]} 55. Nd3+ {[%clk 0:00:13]}  Kd4 {[%clk 0:00:08]} 56. a4 {[%clk 0:00:12]}  Ke3 {[%clk 0:00:09]} 57. Re7 {[%clk 0:00:11]}  Ra1 {[%clk 0:00:09]} 58. Bf5+ {[%clk 0:00:11]}  Kd4 {[%clk 0:00:09]} 59. Re4+ {[%clk 0:00:11]}  Kc3 {[%clk 0:00:09]} 60. Nc5 {[%clk 0:00:11]}  Rg1+ {[%clk 0:00:08]} 61. Kf4 {[%clk 0:00:12]}  Ra1 {[%clk 0:00:09]} 62. Be6 {[%clk 0:00:12]}  Rd1 {[%clk 0:00:08]} 63. Rc4+ {[%clk 0:00:12]}  Kb2 {[%clk 0:00:08]} 64. a5 {[%clk 0:00:12]}  Rd8 {[%clk 0:00:07]} 65. a6 {[%clk 0:00:12]}  Rf8+ {[%clk 0:00:07]} 66. Bf5 {[%clk 0:00:13]}  Ka3 {[%clk 0:00:08]} 67. a7 {[%clk 0:00:13]}  Ra8 {[%clk 0:00:08]} 68. Ra4+ {[%clk 0:00:13]}  Kb2 {[%clk 0:00:08]} 69. Be4 {[%clk 0:00:14]}  Rf8+ {[%clk 0:00:08]} 70. Kg3 {[%clk 0:00:14]}  Kc3 {[%clk 0:00:08]} 71. a8=Q {[%clk 0:00:14]}  Rxa8 {[%clk 0:00:08]} 72. Rxa8 {[%clk 0:00:15]} 1-0


[Site "https://www.chess.com"]

[Event "Titled Tuesday Blitz May 16 Early 2023"]
[White "Altman, Joshua"]
[Black "Sethuraman, S.P."]
[WhiteFideId "426210"]
[BlackFideId "5021596"]
[WhiteElo "2028"]
[BlackElo "2543"]
[Result "0-1"]
[Round "02"]
[TimeControl "180+2"]
[Date "2023.05.16"]
[WhiteClock "0:00:00"]
[BlackClock "0:00:41"]

1. d4 {[%clk 0:03:00]}  d6 {[%clk 0:02:59]} 2. Nf3 {[%clk 0:03:00]}  g6 {[%clk 0:02:59]} 3. c4 {[%clk 0:03:01]}  Bg7 {[%clk 0:03:00]} 4. Nc3 {[%clk 0:03:01]}  Nf6 {[%clk 0:02:59]} 5. Bg5 {[%clk 0:03:01]}  O-O {[%clk 0:02:59]} 6. e3 {[%clk 0:03:01]}  h6 {[%clk 0:02:57]} 7. Bh4 {[%clk 0:03:02]}  Nbd7 {[%clk 0:02:57]} 8. Be2 {[%clk 0:03:02]}  e5 {[%clk 0:02:57]} 9. O-O {[%clk 0:02:56]}  g5 {[%clk 0:02:56]} 10. dxe5 {[%clk 0:02:53]}  Nxe5 {[%clk 0:02:53]} 11. Bg3 {[%clk 0:02:48]}  Qe7 {[%clk 0:02:44]} 12. Nd4 {[%clk 0:02:46]}  Ng6 {[%clk 0:02:39]} 13. Qc2 {[%clk 0:02:42]}  c6 {[%clk 0:02:24]} 14. Rad1 {[%clk 0:02:37]}  Rd8 {[%clk 0:02:23]} 15. h3 {[%clk 0:02:26]}  Be6 {[%clk 0:02:16]} 16. b3 {[%clk 0:02:24]}  d5 {[%clk 0:02:05]} 17. Bd3 {[%clk 0:01:41]}  Nf8 {[%clk 0:01:53]} 18. Bf5 {[%clk 0:01:28]}  dxc4 {[%clk 0:01:47]} 19. Bxe6 {[%clk 0:01:28]}  Nxe6 {[%clk 0:01:36]} 20. Nf5 {[%clk 0:01:28]}  Qb4 {[%clk 0:01:27]} 21. Nxg7 {[%clk 0:01:16]}  Nxg7 {[%clk 0:01:25]} 22. Be5 {[%clk 0:01:10]}  cxb3 {[%clk 0:01:24]} 23. axb3 {[%clk 0:01:03]}  Nfe8 {[%clk 0:01:16]} 24. f4 {[%clk 0:00:47]}  Qe7 {[%clk 0:01:11]} 25. Ne2 {[%clk 0:00:09]}  Rxd1 {[%clk 0:00:58]} 26. Rxd1 {[%clk 0:00:09]}  Rd8 {[%clk 0:00:58]} 27. Rxd8 {[%clk 0:00:07]}  Qxd8 {[%clk 0:00:59]} 28. f5 {[%clk 0:00:06]}  Nh5 {[%clk 0:00:47]} 29. Nd4 {[%clk 0:00:04]}  Nhf6 {[%clk 0:00:44]} 30. Qc3 {[%clk 0:00:03]}  Qe7 {[%clk 0:00:42]} 31. Nf3 {[%clk 0:00:02]}  Nd5 {[%clk 0:00:41]} 32. Qd4 {[%clk 0:00:00]}  f6 {[%clk 0:00:41]} 0-1


[Site "https://www.chess.com"]

[Event "Titled Tuesday Blitz May 16 Early 2023"]
[White "Boyer, Mahel"]
[Black "koncheto"]
[WhiteFideId "45102422"]
[WhiteElo "2439"]
[BlackElo "2553"]
[Result "1-0"]
[Round "02"]
[TimeControl "180+2"]
[Date "2023.05.16"]
[WhiteClock "0:00:05"]
[BlackClock "0:00:00"]

1. Nf3 {[%clk 0:01:46]}  Nf6 {[%clk 0:02:58]} 2. g3 {[%clk 0:01:45]}  d5 {[%clk 0:02:51]} 3. Bg2 {[%clk 0:01:45]}  Bf5 {[%clk 0:02:48]} 4. O-O {[%clk 0:01:39]}  c6 {[%clk 0:02:46]} 5. d3 {[%clk 0:01:36]}  h6 {[%clk 0:02:45]} 6. Nc3 {[%clk 0:01:35]}  Nbd7 {[%clk 0:02:42]} 7. Qe1 {[%clk 0:01:20]}  e5 {[%clk 0:02:37]} 8. e4 {[%clk 0:01:14]}  dxe4 {[%clk 0:02:37]} 9. dxe4 {[%clk 0:01:03]}  Be6 {[%clk 0:02:32]} 10. Nh4 {[%clk 0:01:00]}  Be7 {[%clk 0:02:06]} 11. Nf5 {[%clk 0:00:59]}  O-O {[%clk 0:02:01]} 12. Nxe7+ {[%clk 0:00:58]}  Qxe7 {[%clk 0:02:01]} 13. f3 {[%clk 0:00:59]}  Rfd8 {[%clk 0:01:57]} 14. a4 {[%clk 0:00:55]}  Qb4 {[%clk 0:01:47]} 15. b3 {[%clk 0:00:49]}  h5 {[%clk 0:01:25]} 16. h4 {[%clk 0:00:36]}  Nf8 {[%clk 0:01:12]} 17. Nd5 {[%clk 0:00:19]}  Nxd5 {[%clk 0:01:11]} 18. exd5 {[%clk 0:00:19]}  Qd4+ {[%clk 0:01:03]} 19. Be3 {[%clk 0:00:17]}  Qxd5 {[%clk 0:01:04]} 20. f4 {[%clk 0:00:17]}  e4 {[%clk 0:00:48]} 21. Qb4 {[%clk 0:00:17]}  Bf5 {[%clk 0:00:30]} 22. Qxb7 {[%clk 0:00:17]}  Nh7 {[%clk 0:00:15]} 23. Rad1 {[%clk 0:00:14]}  Qe6 {[%clk 0:00:15]} 24. Rxd8+ {[%clk 0:00:05]}  Rxd8 {[%clk 0:00:16]} 25. Qxa7 {[%clk 0:00:06]}  Nf6 {[%clk 0:00:17]} 26. Qc5 {[%clk 0:00:06]}  Rd5 {[%clk 0:00:13]} 27. Qc3 {[%clk 0:00:04]}  Qd7 {[%clk 0:00:13]} 28. a5 {[%clk 0:00:04]}  Ng4 {[%clk 0:00:08]} 29. a6 {[%clk 0:00:03]}  Nxe3 {[%clk 0:00:07]} 30. Qxe3 {[%clk 0:00:03]}  Ra5 {[%clk 0:00:08]} 31. Qb6 {[%clk 0:00:02]}  Rb5 {[%clk 0:00:07]} 32. Qe3 {[%clk 0:00:01]}  Ra5 {[%clk 0:00:07]} 33. Qb6 {[%clk 0:00:01]}  Rb5 {[%clk 0:00:08]} 34. Qf2 {[%clk 0:00:02]}  Ra5 {[%clk 0:00:08]} 35. Qe2 {[%clk 0:00:02]}  Qd4+ {[%clk 0:00:06]} 36. Qf2 {[%clk 0:00:02]}  e3 {[%clk 0:00:06]} 37. Qe2 {[%clk 0:00:02]}  Qd2 {[%clk 0:00:04]} 38. Qxd2 {[%clk 0:00:02]}  exd2 {[%clk 0:00:05]} 39. Rd1 {[%clk 0:00:03]}  Rxa6 {[%clk 0:00:04]} 40. Rxd2 {[%clk 0:00:03]}  Ra2 {[%clk 0:00:05]} 41. Bxc6 {[%clk 0:00:03]}  Bxc2 {[%clk 0:00:04]} 42. b4 {[%clk 0:00:02]}  Ra1+ {[%clk 0:00:04]} 43. Kf2 {[%clk 0:00:03]}  Bf5 {[%clk 0:00:04]} 44. Bf3 {[%clk 0:00:02]}  Rb1 {[%clk 0:00:04]} 45. Bxh5 {[%clk 0:00:02]}  Rxb4 {[%clk 0:00:04]} 46. Rd8+ {[%clk 0:00:02]}  Kh7 {[%clk 0:00:04]} 47. Bxf7 {[%clk 0:00:03]}  Rb2+ {[%clk 0:00:04]} 48. Ke3 {[%clk 0:00:03]}  Rb3+ {[%clk 0:00:04]} 49. Kf2 {[%clk 0:00:03]}  Rb2+ {[%clk 0:00:05]} 50. Ke3 {[%clk 0:00:03]}  Rb7 {[%clk 0:00:04]} 51. Bg8+ {[%clk 0:00:03]}  Kh6 {[%clk 0:00:04]} 52. Bc4 {[%clk 0:00:04]}  Re7+ {[%clk 0:00:03]} 53. Kf3 {[%clk 0:00:03]}  Be4+ {[%clk 0:00:03]} 54. Kg4 {[%clk 0:00:03]}  Bg6 {[%clk 0:00:03]} 55. Rd6 {[%clk 0:00:04]}  Kh7 {[%clk 0:00:03]} 56. Bd3 {[%clk 0:00:03]}  Bxd3 {[%clk 0:00:02]} 57. Rxd3 {[%clk 0:00:04]}  Ra7 {[%clk 0:00:03]} 58. Kg5 {[%clk 0:00:04]}  Ra5+ {[%clk 0:00:03]} 59. f5 {[%clk 0:00:04]}  Ra7 {[%clk 0:00:04]} 60. Rd6 {[%clk 0:00:04]}  Re7 {[%clk 0:00:04]} 61. Re6 {[%clk 0:00:03]}  Rf7 {[%clk 0:00:04]} 62. h5 {[%clk 0:00:04]}  Rd7 {[%clk 0:00:03]} 63. g4 {[%clk 0:00:04]}  Rf7 {[%clk 0:00:03]} 64. h6 {[%clk 0:00:02]}  Rd7 {[%clk 0:00:02]} 65. hxg7 {[%clk 0:00:02]}  Rxg7+ {[%clk 0:00:03]} 66. Rg6 {[%clk 0:00:03]}  Rd7 {[%clk 0:00:02]} 67. Rh6+ {[%clk 0:00:03]}  Kg7 {[%clk 0:00:02]} 68. Rb6 {[%clk 0:00:04]}  Kh7 {[%clk 0:00:03]} 69. Kh5 {[%clk 0:00:03]}  Kg7 {[%clk 0:00:03]} 70. g5 {[%clk 0:00:04]}  Rd1 {[%clk 0:00:02]} 71. Rb7+ {[%clk 0:00:04]}  Kg8 {[%clk 0:00:02]} 72. Kg6 {[%clk 0:00:05]}  Rd6+ {[%clk 0:00:02]} 73. f6 {[%clk 0:00:06]}  Rd8 {[%clk 0:00:03]} 74. Rh7 {[%clk 0:00:05]}  Re8 {[%clk 0:00:00]} 75. f7+ {[%clk 0:00:05]} 1-0


[Site "https://www.chess.com"]

[Event "Titled Tuesday Blitz May 16 Early 2023"]
[White "Richter, Paul"]
[Black "Averjanov, Alexey"]
[WhiteFideId "2046350"]
[BlackFideId "14109867"]
[WhiteElo "2552"]
[BlackElo "2803"]
[Result "1/2-1/2"]
[Round "02"]
[TimeControl "180+2"]
[Date "2023.05.16"]
[WhiteClock "0:01:50"]
[BlackClock "0:02:00"]

1. e4 {[%clk 0:03:00]}  c6 {[%clk 0:02:59]} 2. Nc3 {[%clk 0:03:00]}  d5 {[%clk 0:02:59]} 3. Nf3 {[%clk 0:03:00]}  Bg4 {[%clk 0:02:59]} 4. h3 {[%clk 0:02:59]}  Bxf3 {[%clk 0:02:59]} 5. Qxf3 {[%clk 0:03:00]}  e6 {[%clk 0:02:58]} 6. g3 {[%clk 0:03:00]}  dxe4 {[%clk 0:02:57]} 7. Nxe4 {[%clk 0:03:01]}  Nd7 {[%clk 0:02:57]} 8. Bg2 {[%clk 0:03:01]}  Ngf6 {[%clk 0:02:57]} 9. d3 {[%clk 0:03:00]}  Be7 {[%clk 0:02:56]} 10. O-O {[%clk 0:03:00]}  O-O {[%clk 0:02:56]} 11. h4 {[%clk 0:02:59]}  Nxe4 {[%clk 0:02:56]} 12. dxe4 {[%clk 0:02:58]}  Qc7 {[%clk 0:02:55]} 13. Rd1 {[%clk 0:02:55]}  Rad8 {[%clk 0:02:54]} 14. Qe2 {[%clk 0:02:45]}  a5 {[%clk 0:02:49]} 15. c3 {[%clk 0:02:36]}  Bc5 {[%clk 0:02:47]} 16. Bf4 {[%clk 0:02:32]}  Qb6 {[%clk 0:02:39]} 17. Bd6 {[%clk 0:02:26]}  Bxd6 {[%clk 0:02:39]} 18. Rxd6 {[%clk 0:02:27]}  Ne5 {[%clk 0:02:32]} 19. Rad1 {[%clk 0:02:23]}  Qc7 {[%clk 0:02:23]} 20. R6d4 {[%clk 0:02:09]}  c5 {[%clk 0:02:17]} 21. Rxd8 {[%clk 0:02:02]}  Rxd8 {[%clk 0:02:17]} 22. f4 {[%clk 0:02:01]}  Nc6 {[%clk 0:02:15]} 23. e5 {[%clk 0:02:00]}  Rxd1+ {[%clk 0:02:02]} 24. Qxd1 {[%clk 0:02:01]}  Qd8 {[%clk 0:02:02]} 25. Qxd8+ {[%clk 0:01:55]}  Nxd8 {[%clk 0:02:03]} 26. Kf2 {[%clk 0:01:50]}  Kf8 {[%clk 0:02:00]} 1/2-1/2


[Site "https://www.chess.com"]

[Event "Titled Tuesday Blitz May 16 Early 2023"]
[White "Pultinevicius, Paulius"]
[Black "Mathieu, Phileas"]
[WhiteFideId "12809390"]
[BlackFideId "36048410"]
[WhiteElo "2540"]
[BlackElo "2241"]
[Result "1-0"]
[Round "02"]
[TimeControl "180+2"]
[Date "2023.05.16"]
[WhiteClock "0:01:18"]
[BlackClock "0:00:45"]

1. Nf3 {[%clk 0:03:00]}  Nf6 {[%clk 0:02:55]} 2. g3 {[%clk 0:02:59]}  e6 {[%clk 0:02:49]} 3. Bg2 {[%clk 0:03:00]}  d5 {[%clk 0:02:43]} 4. O-O {[%clk 0:03:00]}  Be7 {[%clk 0:02:43]} 5. d3 {[%clk 0:02:56]}  b5 {[%clk 0:02:43]} 6. e4 {[%clk 0:02:48]}  Bb7 {[%clk 0:02:43]} 7. e5 {[%clk 0:02:48]}  Nfd7 {[%clk 0:02:42]} 8. Nc3 {[%clk 0:02:41]}  b4 {[%clk 0:02:40]} 9. Ne2 {[%clk 0:02:42]}  c5 {[%clk 0:02:38]} 10. c3 {[%clk 0:02:38]}  Nc6 {[%clk 0:02:37]} 11. d4 {[%clk 0:02:38]}  Qb6 {[%clk 0:02:36]} 12. Be3 {[%clk 0:02:36]}  O-O {[%clk 0:02:29]} 13. Nf4 {[%clk 0:02:32]}  Ba6 {[%clk 0:02:19]} 14. Re1 {[%clk 0:02:32]}  Rfc8 {[%clk 0:02:15]} 15. Bh3 {[%clk 0:02:06]}  Nf8 {[%clk 0:02:13]} 16. Nh5 {[%clk 0:02:05]}  Rab8 {[%clk 0:02:08]} 17. Bh6 {[%clk 0:01:46]}  gxh6 {[%clk 0:01:58]} 18. Qd2 {[%clk 0:01:44]}  f5 {[%clk 0:01:30]} 19. exf6 {[%clk 0:01:42]}  Bd8 {[%clk 0:01:12]} 20. Qxh6 {[%clk 0:01:33]}  Rb7 {[%clk 0:01:07]} 21. Rxe6 {[%clk 0:01:20]}  Bd3 {[%clk 0:00:45]} 22. Re8 {[%clk 0:01:18]} 1-0


[Site "https://www.chess.com"]